[Event "25th Abu Dhabi Master 2018"]
[Site "Abu Dhabi"]
[Date "2018.08.08"]
[Round "2"]
[White "Ikeda, Junta"]
[Black "Pantsulaia, Levan"]
[Result "0-1"]
[ECO "A45"]
[WhiteElo "2419"]
[BlackElo "2587"]
[Annotator "ChessBase"]
[PlyCount "76"]
[EventDate "2018.08.05"]
[EventType "swiss"]
[EventCountry "UAE"]
[SourceTitle "playchess.com"]
[Source "ChessBase"]
[SourceQuality "1"]
[TimeControl "5400+30"]

1. d4 {[%emt 0:00:00]} Nf6 {[%emt 0:01:15]} 2. Bg5 {[%emt 0:00:00]} e6 {[%emt 0:03:29]} 3. Nd2 {[%emt 0:00:00]} c5 {[%emt 0:00:43]} 4. e3 {[%emt 0:00:21]} Nc6 {[%emt 0:02:22]} 5. c3 {[%emt 0:00:59]} b6 {[%emt 0:03:51]} 6. Ne4 {[%emt 0:07:54]} Be7 {[%emt 0:08:29]} 7. Bxf6 {[%emt 0:00:44]} gxf6 {[%emt 0:00:07]} 8. d5 {[%emt 0:06:22]} Ne5 {[%emt 0:35:07]} 9. d6 {[%emt 0:14:39]} Bf8 {[%emt 0:00:20]} 10. f4 {[%emt 0:03:30]} Bb7 {[%emt 0:07:03]} 11. Ng3 {[%emt 0:06:34]} Ng6 {[%emt 0:04:41]} 12. f5 {[%emt 0:35:39]} Ne5 {[%emt 0:00:37]} 13. fxe6 {[%emt 0:11:15]} fxe6 {[%emt 0:00:55]} 14. Qh5+ {[%emt 0:00:40]} Nf7 {[%emt 0:04:38]} 15. O-O-O {[%emt 0:00:51]} f5 {[%emt 0:00:29]} 16. Nf3 {[%emt 0:07:34]} Qf6 {[%emt 0:00:19]} 17. Bc4 {[%emt 0:00:43]} Qh6 {[%emt 0:05:21]} 18. Qxh6 {[%emt 0:00:28]} Bxh6 {[%emt 0:00:07]} 19. Nh5 {[%emt 0:00:27]} O-O-O {[%emt 0:01:57]} 20. Nf4 {[%emt 0:00:42]} Be4 {[%emt 0:03:07]} 21. Rhe1 {[%emt 0:00:34]} Kb7 {[%emt 0:00:15]} 22. Re2 {[%emt 0:00:25]} Bxf3 {[%emt 0:02:37]} 23. gxf3 {[%emt 0:00:04]} Ne5 {[%emt 0:00:07]} 24. Bb3 {[%emt 0:00:54]} c4 {[%emt 0:01:55]} 25. Bc2 {[%emt 0:00:28]} Nxf3 {[%emt 0:00:05]} 26. b3 {[%emt 0:00:37]} Rc8 {[%emt 0:01:13]} 27. b4 {[%emt 0:00:24]} b5 {[%emt 0:03:45]} 28. Kb2 {[%emt 0:00:17]} Ng5 {[%emt 0:01:17]} 29. Rf2 {[%emt 0:00:41]} Rhf8 {[%emt 0:01:30]} 30. a4 {[%emt 0:00:33]} a6 {[%emt 0:00:05]} 31. axb5 {[%emt 0:00:16]} axb5 {[%emt 0:00:05]} 32. Ra1 {[%emt 0:00:33]} Ra8 {[%emt 0:01:29]} 33. Rxa8 {[%emt 0:00:31]} Kxa8 {[%emt 0:00:07]} 34. Ne2 {[%emt 0:00:32]} Kb7 {[%emt 0:01:42]} 35. Rf4 {[%emt 0:00:46]} Nf7 {[%emt 0:02:20]} 36. Rh4 {[%emt 0:00:17]} Bxe3 {[%emt 0:00:06]} 37. Rxh7 {[%emt 0:00:24]} Kc6 {[%emt 0:00:10]} 38. Rh3 {[%emt 0:00:23]} f4 {[%emt 0:01:00]} 0-1

[Event "25th Abu Dhabi Master 2018"]
[Site "Abu Dhabi"]
[Date "2018.08.08"]
[Round "2"]
[White "Jonkman, Harmen"]
[Black "Varshini, Veileven"]
[Result "1-0"]
[ECO "B50"]
[WhiteElo "2404"]
[BlackElo "2205"]
[Annotator "NA"]
[PlyCount "103"]
[EventDate "2018.08.05"]
[EventType "swiss"]
[EventCountry "UAE"]
[SourceTitle "playchess.com"]
[Source "ChessBase"]
[SourceQuality "1"]
[TimeControl "5400+30"]

1. e4 {[%emt 0:01:38]} c5 {[%emt 0:00:08]} 2. Nf3 {[%emt 0:00:07]} d6 {[%emt 0:00:15]} 3. c3 {[%emt 0:00:14]} Nf6 {[%emt 0:00:39]} 4. Bd3 {[%emt 0:00:35]} Nc6 {[%emt 0:02:25]} 5. Bc2 {[%emt 0:01:11]} e6 {[%emt 0:02:08]} 6. O-O {[%emt 0:00:22]} Be7 {[%emt 0:00:47]} 7. Re1 {[%emt 0:00:34]} O-O {[%emt 0:01:09]} 8. d4 {[%emt 0:00:59]} cxd4 {[%emt 0:02:44]} 9. cxd4 {[%emt 0:00:09]} Nb4 {[%emt 0:03:12]} 10. Bb3 {[%emt 0:00:35]} d5 {[%emt 0:01:51]} 11. e5 {[%emt 0:00:05]} Nd7 {[%emt 0:00:38]} 12. Nc3 {[%emt 0:03:27]} a6 {[%emt 0:04:00]} 13. Ne2 {[%emt 0:10:55]} Re8 {[%emt 0:05:00]} 14. g3 {[%emt 0:13:09]} b5 {[%emt 0:14:17]} 15. h4 {[%emt 0:00:51]} a5 {[%emt 0:09:44]} 16. a3 {[%emt 0:00:25]} Nc6 {[%emt 0:05:24]} 17. Bg5 {[%emt 0:00:32]} Ba6 {[%emt 0:05:25]} 18. Nf4 {[%emt 0:14:09]} a4 {[%emt 0:11:24]} 19. Bc2 {[%emt 0:04:46]} h6 {[%emt 0:04:52]} 20. Bxe7 {[%emt 0:06:18]} Qxe7 {[%emt 0:00:11]} 21. Qd3 {[%emt 0:02:14]} Nf8 {[%emt 0:03:09]} 22. Qd2 {[%emt 0:00:08]} Bb7 {[%emt 0:02:30]} 23. Nh5 {[%emt 0:00:19]} Na5 {[%emt 0:06:31]} 24. Nh2 {[%emt 0:03:59]} Nc4 {[%emt 0:01:53]} 25. Qf4 {[%emt 0:00:22]} Ng6 {[%emt 0:02:01]} 26. Qg4 {[%emt 0:02:38]} Nxb2 {[%emt 0:01:35]} 27. Bxg6 {[%emt 0:07:58]} fxg6 {[%emt 0:00:05]} 28. Qxg6 {[%emt 0:00:05]} Kh8 {[%emt 0:01:47]} 29. Reb1 {[%emt 0:05:04]} Nc4 {[%emt 0:01:22]} 30. Rxb5 {[%emt 0:00:05]} Bc6 {[%emt 0:05:22]} 31. Rc5 {[%emt 0:01:10]} Rec8 {[%emt 0:00:11]} 32. Nf4 {[%emt 0:04:50]} Bd7 {[%emt 0:00:51]} 33. Rxc8+ {[%emt 0:00:13]} Rxc8 {[%emt 0:00:17]} 34. Ng4 {[%emt 0:00:38]} Rf8 {[%emt 0:01:36]} 35. Kg2 {[%emt 0:04:22]} Rxf4 {[%emt 0:01:33]} 36. gxf4 {[%emt 0:00:17]} Be8 {[%emt 0:00:03]} 37. Qd3 {[%emt 0:00:41]} Qxh4 {[%emt 0:00:27]} 38. Qg3 {[%emt 0:00:31]} Qh5 {[%emt 0:00:34]} 39. Rb1 {[%emt 0:00:56]} Bg6 {[%emt 0:00:51]} 40. Rb8+ {[%emt 0:00:53]} Kh7 {[%emt 0:00:07]} 41. Rb7 {[%emt 0:00:08]} Kh8 {[%emt 0:00:47]} 42. Rb8+ {[%emt 0:05:13]} Kh7 {[%emt 0:00:06]} 43. Rb7 {[%emt 0:00:07]} Kh8 {[%emt 0:00:07]} 44. Ra7 {[%emt 0:00:10]} Nb2 {[%emt 0:01:27]} 45. Ne3 {[%emt 0:01:52]} Nd3 {[%emt 0:00:29]} 46. f3 {[%emt 0:00:55]} Bf7 {[%emt 0:00:32]} 47. f5 {[%emt 0:01:35]} g5 {[%emt 0:00:32]} 48. fxg6 {[%emt 0:00:59]} Bxg6 {[%emt 0:00:11]} 49. Rxa4 {[%emt 0:00:29]} Nc1 {[%emt 0:00:47]} 50. Ra8+ {[%emt 0:00:25]} Kg7 {[%emt 0:00:30]} 51. Ra7+ {[%emt 0:00:35]} Kh8 {[%emt 0:00:09]} 52. Qf4 {[%emt 0:01:25]} 1-0

[Event "25th Abu Dhabi Master 2018"]
[Site "Abu Dhabi"]
[Date "2018.08.08"]
[Round "2"]
[White "Dimakiling, Oliver"]
[Black "Aravindh, Chithambaram VR"]
[Result "0-1"]
[ECO "A05"]
[WhiteElo "2401"]
[BlackElo "2581"]
[Annotator "ChessBase"]
[PlyCount "80"]
[EventDate "2018.08.05"]
[EventType "swiss"]
[EventCountry "UAE"]
[SourceTitle "playchess.com"]
[Source "ChessBase"]
[SourceQuality "1"]
[TimeControl "5400+30"]

1. Nf3 {[%emt 0:00:00]} Nf6 {[%emt 0:00:00]} 2. g3 {[%emt 0:00:16]} d5 {[%emt 0:00:02]} 3. Bg2 {[%emt 0:00:39]} e6 {[%emt 0:00:16]} 4. O-O {[%emt 0:00:40]} Be7 {[%emt 0:00:13]} 5. d3 {[%emt 0:00:44]} O-O {[%emt 0:00:12]} 6. Nbd2 {[%emt 0:00:19]} Nc6 {[%emt 0:00:13]} 7. c3 {[%emt 0:00:51]} e5 {[%emt 0:00:43]} 8. Qc2 {[%emt 0:01:23]} Be6 {[%emt 0:13:55]} 9. b4 {[%emt 0:01:07]} Bd6 {[%emt 0:02:02]} 10. Bb2 {[%emt 0:02:22]} Ne7 {[%emt 0:18:53]} 11. e4 {[%emt 0:08:28]} c6 {[%emt 0:01:18]} 12. Rfe1 {[%emt 0:03:10]} Ng6 {[%emt 0:01:39]} 13. a3 {[%emt 0:01:34]} a5 {[%emt 0:04:00]} 14. Nb3 {[%emt 0:05:01]} b6 {[%emt 0:06:39]} 15. Nbd2 {[%emt 0:08:01]} h6 {[%emt 0:05:30]} 16. d4 {[%emt 0:04:43]} dxe4 {[%emt 0:05:37]} 17. Nxe5 {[%emt 0:00:14]} Bxe5 {[%emt 0:00:51]} 18. dxe5 {[%emt 0:00:09]} Nxe5 {[%emt 0:00:06]} 19. Nxe4 {[%emt 0:00:17]} Nxe4 {[%emt 0:07:20]} 20. Bxe4 {[%emt 0:03:43]} Qc7 {[%emt 0:00:19]} 21. Bc1 {[%emt 0:04:13]} Nc4 {[%emt 0:00:42]} 22. Bf4 {[%emt 0:00:54]} Qb7 {[%emt 0:00:25]} 23. a4 {[%emt 0:02:37]} Rfe8 {[%emt 0:03:53]} 24. h4 {[%emt 0:04:48]} Bd5 {[%emt 0:05:15]} 25. Bxd5 {[%emt 0:11:43]} cxd5 {[%emt 0:02:19]} 26. b5 {[%emt 0:00:26]} Qd7 {[%emt 0:04:24]} 27. Qd3 {[%emt 0:02:29]} Re6 {[%emt 0:01:28]} 28. Kg2 {[%emt 0:02:04]} Rae8 {[%emt 0:01:27]} 29. Red1 {[%emt 0:03:36]} Rd8 {[%emt 0:00:17]} 30. Qf3 {[%emt 0:07:47]} f5 {[%emt 0:02:44]} 31. Rd4 {[%emt 0:03:49]} Re4 {[%emt 0:00:12]} 32. Rad1 {[%emt 0:00:26]} Qf7 {[%emt 0:02:52]} 33. g4 {[%emt 0:06:56]} fxg4 {[%emt 0:02:46]} 34. Qxg4 {[%emt 0:00:30]} Nd6 {[%emt 0:01:27]} 35. Rxe4 {[%emt 0:06:31]} Nxe4 {[%emt 0:00:04]} 36. Rd3 {[%emt 0:00:10]} h5 {[%emt 0:01:05]} 37. Qf3 {[%emt 0:02:39]} Rf8 {[%emt 0:00:08]} 38. Bg3 {[%emt 0:00:52]} Qg6 {[%emt 0:00:24]} 39. Qe3 {[%emt 0:00:52]} Rxf2+ {[%emt 0:00:28]} 40. Kh1 {[%emt 0:00:26]} Nxg3+ {[%emt 0:00:23]} 0-1

[Event "25th Abu Dhabi Master 2018"]
[Site "Abu Dhabi"]
[Date "2018.08.08"]
[Round "2"]
[White "Rakesh, Kumar Jena"]
[Black "Song, Yuxin"]
[Result "1-0"]
[ECO "A05"]
[WhiteElo "2385"]
[BlackElo "2126"]
[Annotator "NA"]
[PlyCount "123"]
[EventDate "2018.08.05"]
[EventType "swiss"]
[EventCountry "UAE"]
[SourceTitle "playchess.com"]
[Source "ChessBase"]
[SourceQuality "1"]
[TimeControl "5400+30"]

1. Nf3 {[%emt 0:00:10]} Nf6 {[%emt 0:00:00]} 2. d4 {[%emt 0:00:06]} e6 {[%emt 0:00:08]} 3. Bf4 {[%emt 0:00:07]} c5 {[%emt 0:00:13]} 4. e3 {[%emt 0:00:39]} Nc6 {[%emt 0:00:13]} 5. Nbd2 {[%emt 0:00:09]} d5 {[%emt 0:00:31]} 6. c3 {[%emt 0:00:38]} Bd6 {[%emt 0:01:00]} 7. Bg3 {[%emt 0:00:00]} O-O {[%emt 0:01:56]} 8. Bd3 {[%emt 0:00:00]} b6 {[%emt 0:02:08]} 9. e4 {[%emt 0:00:34]} dxe4 {[%emt 0:11:17]} 10. Nxe4 {[%emt 0:00:16]} Nxe4 {[%emt 0:00:11]} 11. Bxe4 {[%emt 0:00:05]} Bb7 {[%emt 0:00:13]} 12. dxc5 {[%emt 0:13:26]} Bxc5 {[%emt 0:00:50]} 13. Qe2 {[%emt 0:00:07]} Be7 {[%emt 0:12:29]} 14. h4 {[%emt 0:04:48]} h6 {[%emt 0:06:17]} 15. Bf4 {[%emt 0:04:30]} Kh8 {[%emt 0:16:41]} 16. Rh3 {[%emt 0:09:52]} f5 {[%emt 0:08:19]} 17. Bxc6 {[%emt 0:03:09]} Bxc6 {[%emt 0:00:11]} 18. Ne5 {[%emt 0:00:10]} Be8 {[%emt 0:01:03]} 19. Rd3 {[%emt 0:03:08]} Qc8 {[%emt 0:01:27]} 20. O-O-O {[%emt 0:00:22]} Qa6 {[%emt 0:03:01]} 21. Kb1 {[%emt 0:00:06]} Bb5 {[%emt 0:05:01]} 22. Qh5 {[%emt 0:12:05]} Bxd3+ {[%emt 0:00:14]} 23. Rxd3 {[%emt 0:00:01]} Bf6 {[%emt 0:05:13]} 24. Qe2 {[%emt 0:28:13]} Bxe5 {[%emt 0:01:15]} 25. Bxe5 {[%emt 0:00:06]} Rad8 {[%emt 0:00:51]} 26. Bxg7+ {[%emt 0:00:07]} Kh7 {[%emt 0:00:11]} 27. Bd4 {[%emt 0:02:38]} e5 {[%emt 0:00:51]} 28. Kc2 {[%emt 0:08:36]} e4 {[%emt 0:07:23]} 29. Re3 {[%emt 0:00:08]} Qxe2+ {[%emt 0:00:30]} 30. Rxe2 {[%emt 0:00:03]} Rfe8 {[%emt 0:00:28]} 31. g3 {[%emt 0:00:41]} Kg6 {[%emt 0:00:19]} 32. Kd2 {[%emt 0:00:44]} Rd7 {[%emt 0:02:23]} 33. Ke3 {[%emt 0:00:15]} b5 {[%emt 0:00:22]} 34. Kf4 {[%emt 0:01:08]} h5 {[%emt 0:00:37]} 35. b4 {[%emt 0:02:08]} Rc7 {[%emt 0:05:19]} 36. a4 {[%emt 0:01:06]} bxa4 {[%emt 0:02:26]} 37. Ra2 {[%emt 0:00:02]} a6 {[%emt 0:00:55]} 38. Rxa4 {[%emt 0:00:06]} Re6 {[%emt 0:00:03]} 39. Ra5 {[%emt 0:00:10]} e3 {[%emt 0:01:13]} 40. fxe3 {[%emt 0:00:11]} Re4+ {[%emt 0:00:03]} 41. Kf3 {[%emt 0:00:08]} Rc6 {[%emt 0:00:24]} 42. Rd5 {[%emt 0:00:19]} Rce6 {[%emt 0:02:29]} 43. c4 {[%emt 0:00:58]} Rc6 {[%emt 0:00:06]} 44. b5 {[%emt 0:01:20]} axb5 {[%emt 0:01:07]} 45. cxb5 {[%emt 0:00:03]} Rce6 {[%emt 0:00:01]} 46. b6 {[%emt 0:01:59]} Re8 {[%emt 0:02:06]} 47. Rd6+ {[%emt 0:00:07]} Kh7 {[%emt 0:00:24]} 48. Rf6 {[%emt 0:00:12]} R4e7 {[%emt 0:01:22]} 49. Rxf5 {[%emt 0:00:07]} Kg6 {[%emt 0:00:11]} 50. Rf6+ {[%emt 0:00:37]} Kh7 {[%emt 0:00:02]} 51. Rf5 {[%emt 0:02:29]} Kg6 {[%emt 0:00:08]} 52. Rc5 {[%emt 0:00:04]} Rf7+ {[%emt 0:00:24]} 53. Ke2 {[%emt 0:00:06]} Rb8 {[%emt 0:00:08]} 54. Rc6+ {[%emt 0:00:37]} Kf5 {[%emt 0:00:26]} 55. Kf3 {[%emt 0:00:19]} Re8 {[%emt 0:00:11]} 56. b7 {[%emt 0:00:17]} Rxe3+ {[%emt 0:00:22]} 57. Kxe3 {[%emt 0:00:15]} Rxb7 {[%emt 0:00:06]} 58. Kf3 {[%emt 0:00:05]} Rb3+ {[%emt 0:00:06]} 59. Be3 {[%emt 0:00:02]} Ra3 {[%emt 0:00:21]} 60. Rc5+ {[%emt 0:00:03]} Kg6 {[%emt 0:00:15]} 61. Rg5+ {[%emt 0:00:04]} Kf6 {[%emt 0:00:13]} 62. Rxh5 {[%emt 0:00:05]} 1-0

[Event "25th Abu Dhabi Master 2018"]
[Site "Abu Dhabi"]
[Date "2018.08.08"]
[Round "2"]
[White "Anand, Nadar"]
[Black "Bartakke, Amardeep S"]
[Result "1-0"]
[ECO "E09"]
[WhiteElo "2377"]
[BlackElo "2133"]
[Annotator "NA"]
[PlyCount "99"]
[EventDate "2018.08.05"]
[EventType "swiss"]
[EventCountry "UAE"]
[SourceTitle "playchess.com"]
[Source "ChessBase"]
[SourceQuality "1"]
[TimeControl "5400+30"]

1. Nf3 {[%emt 0:00:00]} Nf6 {[%emt 0:00:56]} 2. c4 {[%emt 0:00:00]} e6 {[%emt 0:00:19]} 3. g3 {[%emt 0:00:00]} d5 {[%emt 0:00:14]} 4. Bg2 {[%emt 0:00:26]} Be7 {[%emt 0:00:41]} 5. O-O {[%emt 0:01:22]} O-O {[%emt 0:00:06]} 6. d4 {[%emt 0:00:33]} Nbd7 {[%emt 0:01:13]} 7. Qc2 {[%emt 0:02:11]} c6 {[%emt 0:00:20]} 8. Nbd2 {[%emt 0:00:04]} b6 {[%emt 0:03:17]} 9. e4 {[%emt 0:00:59]} Bb7 {[%emt 0:04:55]} 10. e5 {[%emt 0:00:23]} Ne8 {[%emt 0:06:18]} 11. cxd5 {[%emt 0:00:31]} cxd5 {[%emt 0:00:06]} 12. Re1 {[%emt 0:00:04]} Rc8 {[%emt 0:01:55]} 13. Qa4 {[%emt 0:01:34]} Bc6 {[%emt 0:00:29]} 14. Qb3 {[%emt 0:00:05]} b5 {[%emt 0:01:19]} 15. Nf1 {[%emt 0:13:26]} Nb6 {[%emt 0:02:42]} 16. h4 {[%emt 0:09:44]} b4 {[%emt 0:00:53]} 17. Qd3 {[%emt 0:13:19]} Ba4 {[%emt 0:03:57]} 18. b3 {[%emt 0:02:41]} Rc3 {[%emt 0:02:04]} 19. Qa6 {[%emt 0:07:31]} Bd7 {[%emt 0:09:39]} 20. Bd2 {[%emt 0:03:11]} Rc6 {[%emt 0:02:57]} 21. Qa5 {[%emt 0:03:47]} Qb8 {[%emt 0:01:17]} 22. Rac1 {[%emt 0:01:51]} Nc8 {[%emt 0:08:41]} 23. Ne3 {[%emt 0:03:13]} Qb6 {[%emt 0:03:39]} 24. Qxb6 {[%emt 0:00:28]} Nxb6 {[%emt 0:00:03]} 25. Bf1 {[%emt 0:01:42]} Na8 {[%emt 0:00:17]} 26. Rxc6 {[%emt 0:01:39]} Bxc6 {[%emt 0:02:33]} 27. Rc1 {[%emt 0:00:01]} Bd7 {[%emt 0:00:04]} 28. Nc2 {[%emt 0:09:37]} a5 {[%emt 0:03:42]} 29. a3 {[%emt 0:00:21]} a4 {[%emt 0:03:36]} 30. Bxb4 {[%emt 0:01:28]} Bxb4 {[%emt 0:00:04]} 31. Nxb4 {[%emt 0:00:10]} axb3 {[%emt 0:00:11]} 32. Nd2 {[%emt 0:01:41]} b2 {[%emt 0:10:54]} 33. Rb1 {[%emt 0:01:31]} Nec7 {[%emt 0:01:35]} 34. Rxb2 {[%emt 0:00:01]} Rb8 {[%emt 0:01:03]} 35. Rc2 {[%emt 0:04:22]} Kf8 {[%emt 0:00:31]} 36. Nb3 {[%emt 0:06:14]} Ke8 {[%emt 0:02:33]} 37. Nc5 {[%emt 0:01:07]} Bb5 {[%emt 0:01:27]} 38. Nca6 {[%emt 0:02:14]} Bxa6 {[%emt 0:03:38]} 39. Bxa6 {[%emt 0:00:22]} Kd7 {[%emt 0:00:48]} 40. Bd3 {[%emt 0:00:41]} h6 {[%emt 0:01:51]} 41. f4 {[%emt 0:00:58]} Rb7 {[%emt 0:00:58]} 42. f5 {[%emt 0:01:43]} Ra7 {[%emt 0:00:46]} 43. fxe6+ {[%emt 0:00:27]} Nxe6 {[%emt 0:02:46]} 44. Bb5+ {[%emt 0:00:14]} Kd8 {[%emt 0:04:40]} 45. Nc6+ {[%emt 0:00:02]} Kc7 {[%emt 0:00:07]} 46. Nxa7+ {[%emt 0:00:04]} Kb6 {[%emt 0:00:05]} 47. Bc6 {[%emt 0:02:41]} Nxd4 {[%emt 0:04:28]} 48. Rb2+ {[%emt 0:00:05]} Kxa7 {[%emt 0:00:19]} 49. Bxa8 {[%emt 0:00:02]} Kxa8 {[%emt 0:00:05]} 50. Rf2 {[%emt 0:00:28]} 1-0

[Event "25th Abu Dhabi Master 2018"]
[Site "Abu Dhabi"]
[Date "2018.08.08"]
[Round "2"]
[White "Soumya, Swaminathan"]
[Black "Fier, Alexandr"]
[Result "1/2-1/2"]
[ECO "B35"]
[WhiteElo "2361"]
[BlackElo "2561"]
[Annotator "ChessBase"]
[PlyCount "143"]
[EventDate "2018.08.05"]
[EventType "swiss"]
[EventCountry "UAE"]
[SourceTitle "playchess.com"]
[Source "ChessBase"]
[SourceQuality "1"]
[TimeControl "5400+30"]

1. e4 {[%emt 0:01:09]} c5 {[%emt 0:00:00]} 2. Nf3 {[%emt 0:00:30]} Nc6 {[%emt 0:00:00]} 3. Nc3 {[%emt 0:00:53]} g6 {[%emt 0:00:21]} 4. d4 {[%emt 0:00:18]} cxd4 {[%emt 0:00:05]} 5. Nxd4 {[%emt 0:00:03]} Bg7 {[%emt 0:00:07]} 6. Be3 {[%emt 0:00:12]} Nf6 {[%emt 0:00:05]} 7. Bc4 {[%emt 0:00:59]} O-O {[%emt 0:00:06]} 8. Bb3 {[%emt 0:00:03]} Re8 {[%emt 0:01:20]} 9. f3 {[%emt 0:04:50]} e6 {[%emt 0:00:14]} 10. O-O {[%emt 0:08:11]} d5 {[%emt 0:02:13]} 11. exd5 {[%emt 0:00:19]} Nxd5 {[%emt 0:00:04]} 12. Nxd5 {[%emt 0:01:25]} exd5 {[%emt 0:00:05]} 13. Bf2 {[%emt 0:00:04]} Qg5 {[%emt 0:00:05]} 14. c3 {[%emt 0:17:06]} Be5 {[%emt 0:06:06]} 15. h4 {[%emt 0:07:18]} Qf4 {[%emt 0:03:12]} 16. g3 {[%emt 0:00:26]} Qf6 {[%emt 0:00:03]} 17. f4 {[%emt 0:09:38]} Bxd4 {[%emt 0:13:43]} 18. Bxd4 {[%emt 0:00:25]} Qd6 {[%emt 0:00:58]} 19. Bf2 {[%emt 0:01:46]} Be6 {[%emt 0:03:04]} 20. Re1 {[%emt 0:05:24]} Red8 {[%emt 0:03:30]} 21. Qf3 {[%emt 0:02:12]} Bf5 {[%emt 0:02:35]} 22. Bxd5 {[%emt 0:00:37]} h5 {[%emt 0:04:37]} 23. Bc4 {[%emt 0:13:06]} Bg4 {[%emt 0:00:45]} 24. Qe4 {[%emt 0:00:24]} Bf5 {[%emt 0:01:30]} 25. Qe3 {[%emt 0:00:40]} Qd7 {[%emt 0:00:11]} 26. b4 {[%emt 0:01:27]} Rac8 {[%emt 0:02:34]} 27. Bb3 {[%emt 0:03:26]} Bg4 {[%emt 0:00:44]} 28. Qe4 {[%emt 0:06:51]} Bf5 {[%emt 0:00:13]} 29. Qg2 {[%emt 0:04:50]} Bh3 {[%emt 0:00:19]} 30. Qh1 {[%emt 0:00:22]} Bg4 {[%emt 0:00:13]} 31. Rac1 {[%emt 0:04:17]} b6 {[%emt 0:02:32]} 32. Qe4 {[%emt 0:01:34]} Bf5 {[%emt 0:00:10]} 33. Qf3 {[%emt 0:01:35]} Bg4 {[%emt 0:00:04]} 34. Qe4 {[%emt 0:00:04]} Qd6 {[%emt 0:03:52]} 35. a4 {[%emt 0:00:55]} Qf6 {[%emt 0:01:05]} 36. Bd5 {[%emt 0:01:45]} Qd6 {[%emt 0:03:15]} 37. Bxc6 {[%emt 0:00:25]} Rxc6 {[%emt 0:01:28]} 38. Bd4 {[%emt 0:00:13]} Qd7 {[%emt 0:00:01]} 39. Qe5 {[%emt 0:00:39]} f6 {[%emt 0:00:03]} 40. Qe4 {[%emt 0:00:30]} Kf7 {[%emt 0:00:02]} 41. Ra1 {[%emt 0:00:33]} Re6 {[%emt 0:00:55]} 42. Qg2 {[%emt 0:00:11]} Rde8 {[%emt 0:01:05]} 43. Qf1 {[%emt 0:00:23]} Be2 {[%emt 0:08:50]} 44. Qf2 {[%emt 0:00:37]} Ba6 {[%emt 0:00:02]} 45. Rxe6 {[%emt 0:00:20]} Qxe6 {[%emt 0:00:04]} 46. a5 {[%emt 0:01:35]} Bb7 {[%emt 0:01:40]} 47. axb6 {[%emt 0:00:17]} axb6 {[%emt 0:03:41]} 48. Bxb6 {[%emt 0:02:13]} Qh3 {[%emt 0:02:50]} 49. Qh2 {[%emt 0:00:07]} Qg4 {[%emt 0:00:01]} 50. Qf2 {[%emt 0:00:09]} Bd5 {[%emt 0:03:29]} 51. c4 {[%emt 0:01:04]} Bb7 {[%emt 0:01:12]} 52. b5 {[%emt 0:00:43]} Kg8 {[%emt 0:03:46]} 53. Re1 {[%emt 0:00:06]} Ra8 {[%emt 0:01:09]} 54. Qe3 {[%emt 0:01:04]} Kh7 {[%emt 0:03:36]} 55. Qe7+ {[%emt 0:00:40]} Kh6 {[%emt 0:00:02]} 56. Qxb7 {[%emt 0:00:05]} Qxg3+ {[%emt 0:00:01]} 57. Kf1 {[%emt 0:00:09]} Ra2 {[%emt 0:00:02]} 58. Be3 {[%emt 0:00:44]} Qh3+ {[%emt 0:01:33]} 59. Kg1 {[%emt 0:00:03]} Qxh4 {[%emt 0:00:08]} 60. Kf1 {[%emt 0:00:42]} Qh3+ {[%emt 0:02:26]} 61. Kg1 {[%emt 0:00:03]} Qg3+ {[%emt 0:00:03]} 62. Kf1 {[%emt 0:00:05]} h4 {[%emt 0:00:25]} 63. f5+ {[%emt 0:01:42]} g5 {[%emt 0:00:03]} 64. Qc6 {[%emt 0:00:19]} Qh3+ {[%emt 0:02:23]} 65. Kg1 {[%emt 0:00:03]} Qg4+ {[%emt 0:00:02]} 66. Kh1 {[%emt 0:01:23]} Qxf5 {[%emt 0:00:01]} 67. b6 {[%emt 0:00:22]} Kh5 {[%emt 0:08:36]} 68. b7 {[%emt 0:00:29]} Qh3+ {[%emt 0:03:20]} 69. Kg1 {[%emt 0:00:03]} Qg3+ {[%emt 0:00:06]} 70. Kf1 {[%emt 0:00:02]} Qh3+ {[%emt 0:03:06]} 71. Kg1 {[%emt 0:00:02]} Qg3+ {[%emt 0:00:05]} 72. Kf1 {[%emt 0:00:05]} 1/2-1/2

[Event "25th Abu Dhabi Master 2018"]
[Site "Abu Dhabi"]
[Date "2018.08.08"]
[Round "2"]
[White "Kulkarni, Chinmay"]
[Black "Nihal Sarin"]
[Result "0-1"]
[ECO "B75"]
[WhiteElo "2355"]
[BlackElo "2556"]
[Annotator "ChessBase"]
[PlyCount "92"]
[EventDate "2018.08.05"]
[EventType "swiss"]
[EventCountry "UAE"]
[SourceTitle "playchess.com"]
[Source "ChessBase"]
[SourceQuality "1"]
[TimeControl "5400+30"]

1. e4 {[%emt 0:00:00]} c5 {[%emt 0:00:02]} 2. Nf3 {[%emt 0:00:12]} d6 {[%emt 0:00:09]} 3. d4 {[%emt 0:00:06]} cxd4 {[%emt 0:00:06]} 4. Nxd4 {[%emt 0:00:05]} Nf6 {[%emt 0:00:06]} 5. Nc3 {[%emt 0:00:06]} g6 {[%emt 0:00:06]} 6. Be3 {[%emt 0:01:17]} Bg7 {[%emt 0:00:14]} 7. f3 {[%emt 0:00:13]} a6 {[%emt 0:00:11]} 8. Qd2 {[%emt 0:00:30]} h5 {[%emt 0:01:01]} 9. Bc4 {[%emt 0:02:21]} Nbd7 {[%emt 0:00:41]} 10. O-O-O {[%emt 0:00:12]} b5 {[%emt 0:02:08]} 11. Bb3 {[%emt 0:06:01]} Bb7 {[%emt 0:01:41]} 12. Nd5 {[%emt 0:09:46]} Nc5 {[%emt 0:38:04]} 13. Kb1 {[%emt 0:11:32]} Rc8 {[%emt 0:12:35]} 14. Bg5 {[%emt 0:02:43]} e6 {[%emt 0:06:43]} 15. Nxf6+ {[%emt 0:03:08]} Bxf6 {[%emt 0:00:07]} 16. h4 {[%emt 0:00:44]} Qe7 {[%emt 0:09:31]} 17. Rhe1 {[%emt 0:06:06]} Rd8 {[%emt 0:01:34]} 18. Bd5 {[%emt 0:04:13]} Bxg5 {[%emt 0:03:05]} 19. hxg5 {[%emt 0:00:49]} e5 {[%emt 0:05:20]} 20. Nc6 {[%emt 0:08:44]} Bxc6 {[%emt 0:00:07]} 21. Bxc6+ {[%emt 0:00:03]} Kf8 {[%emt 0:00:01]} 22. f4 {[%emt 0:00:45]} exf4 {[%emt 0:08:49]} 23. Qc3 {[%emt 0:11:34]} Kg8 {[%emt 0:00:12]} 24. e5 {[%emt 0:01:29]} Kh7 {[%emt 0:00:57]} 25. Bd5 {[%emt 0:07:54]} Rhe8 {[%emt 0:01:50]} 26. exd6 {[%emt 0:00:51]} Qxd6 {[%emt 0:00:09]} 27. Rxe8 {[%emt 0:02:29]} Rxe8 {[%emt 0:00:01]} 28. Bf3 {[%emt 0:00:21]} Qe5 {[%emt 0:00:16]} 29. Qb4 {[%emt 0:01:43]} Qxg5 {[%emt 0:01:57]} 30. a3 {[%emt 0:01:11]} Qe5 {[%emt 0:01:52]} 31. Bc6 {[%emt 0:04:53]} Re7 {[%emt 0:00:26]} 32. Bd5 {[%emt 0:00:39]} Ne4 {[%emt 0:00:44]} 33. Bb3 {[%emt 0:00:37]} Nc5 {[%emt 0:00:52]} 34. Bd5 {[%emt 0:00:14]} Ne4 {[%emt 0:00:04]} 35. Bb3 {[%emt 0:00:21]} Kg7 {[%emt 0:00:30]} 36. Rd8 {[%emt 0:00:22]} Qc5 {[%emt 0:00:45]} 37. Qe1 {[%emt 0:01:26]} Ng3 {[%emt 0:00:07]} 38. Qd1 {[%emt 0:01:56]} Qe3 {[%emt 0:00:53]} 39. Ka2 {[%emt 0:02:40]} Ne2 {[%emt 0:00:41]} 40. Qd6 {[%emt 0:02:21]} Nc1+ {[%emt 0:00:17]} 41. Kb1 {[%emt 0:00:06]} Nxb3 {[%emt 0:00:27]} 42. cxb3 {[%emt 0:00:03]} Qe5 {[%emt 0:00:19]} 43. Qb6 {[%emt 0:01:05]} Qf5+ {[%emt 0:00:50]} 44. Ka2 {[%emt 0:00:06]} Re1 {[%emt 0:00:28]} 45. Qd4+ {[%emt 0:01:07]} Kh6 {[%emt 0:00:05]} 46. Qh8+ {[%emt 0:00:54]} Kg5 {[%emt 0:00:02]} 0-1